bitfinex/quotes_SOLUSD_20240702
["timestamp","ask_amount","ask_price","bid_price","bid_amount"]
[1719951909866,26.76,153.55,153.45,20.34]
[1719951910191,33.2725,153.55,153.45,20.34]
[1719951910775,6.5129,153.54,153.45,20.34]
[1719951910976,26.76,153.55,153.46,1.3028046]
[1719951911171,26.76,153.55,153.47,0.34]
[1719951911373,26.76,153.55,153.47,1.64280678]
[1719951911766,33.2728,153.55,153.47,1.64280678]
[1719951912468,26.76,153.55,153.47,1.64280678]
[1719951912675,33.2726,153.55,153.47,1.64280678]
[1719951913278,6.513,153.54,153.47,1.64280678]
[1719951913677,6.5134,153.53,153.44,1.30288784]
[1719951913980,26.76,153.55,153.44,1.30288784]
[1719951914885,6.5129,153.54,153.44,1.30288784]
[1719951915088,6.5129,153.54,153.45,0.34]
[1719951915392,6.5129,153.54,153.46,1.3028018]
[1719951915585,6.5129,153.54,153.47,0.34]
[1719951915885,13.37,153.49,153.47,0.34]
[1719951916683,13.37,153.49,153.46,0.34]
[1719951917865,6.513,153.54,153.46,0.34]
[1719951917866,13.37,153.48,153.46,0.34]
[1719951918373,13.37,153.48,153.47,0.34]
[1719951918578,13.37,153.48,153.45,0.34]
[1719951919289,6.79408374,153.58,153.47,22.5075]
[1719951919474,13.37,153.52,153.48,20.34]
[1719951919878,13.37,153.51,153.48,20.34]
[1719951920983,6.5116,153.58,153.48,20.34]
[1719951921294,13.37,153.51,153.49,1.30099348]
[1719951921501,13.37,153.51,153.5,0.34]
[1719951922690,6.5114,153.58,153.5,0.34]
[1719951922888,13.37,153.52,153.5,0.34]
[1719951923090,13.37,153.52,153.49,0.34]
[1719951924688,6.5114,153.58,153.47,16.2534]
[1719951924689,13.37,153.5,153.47,16.2534]
[1719951924890,13.37,153.49,153.47,16.2534]
[1719951925069,13.37,153.5,153.47,16.2534]
[1719951925400,13.37,153.51,153.47,16.2534]
[1719951925789,13.37,153.51,153.48,0.34]
[1719951926291,13.37,153.54,153.49,6.1476]
[1719951926497,13.37,153.54,153.5,20.34]
[1719951927071,0.8559884,153.59,153.5,20.34]
[1719951927299,13.37,153.54,153.5,20.34]
[1719951928372,7.3667884,153.59,153.5,20.34]
[1719951928677,0.8559884,153.59,153.5,20.34]
[1719951929072,13.37,153.53,153.5,20.34]
[1719951929571,0.8559884,153.59,153.5,20.34]
[1719951929781,13.37,153.53,153.5,20.34]
[1719951929992,13.37,153.54,153.5,20.34]
[1719951930296,0.8559884,153.59,153.5,20.34]
[1719951930601,0.8559884,153.59,153.5,33.71]
[1719951930808,13.37,153.55,153.5,33.71]
[1719951930990,0.8559884,153.59,153.52,28.3975]
[1719951931306,0.8559884,153.59,153.53,15.01210603]
[1719951931479,13.37,153.58,153.54,20.0]
[1719951931805,13.37,153.58,153.55,0.34]
[1719951932185,0.8559884,153.59,153.55,106.9882]
[1719951932394,0.8559884,153.59,153.58,28.81]
[1719951932684,0.8559884,153.59,153.58,49.15]
[1719951933799,0.8559884,153.59,153.58,35.78]
[1719951936298,0.8559884,153.59,153.58,35.61]
[1719951936506,0.8559884,153.59,153.58,15.61]
[1719951936983,0.8559884,153.59,153.53,115.1067]
[1719951938010,0.8559884,153.59,153.52,1.30210982]
[1719951938011,27.5459884,153.59,153.52,1.30210982]
[1719951938183,27.5459884,153.59,153.53,1.30238535]
[1719951938504,27.5459884,153.59,153.5,1.30238827]
[1719951939004,27.5459884,153.59,153.49,15.8748]
[1719951939205,26.69,153.56,153.49,15.8748]
[1719951939409,7.3670884,153.59,153.49,15.8748]
[1719951939593,26.69,153.58,153.49,15.8748]
[1719951939790,33.2013,153.58,153.5,1.30169698]
[1719951940602,33.2013,153.58,153.51,0.34]
[1719951940810,0.8559884,153.59,153.44,372.28888502]
[1719951940811,6.5132,153.54,153.44,372.28888502]
[1719951940990,20.4859884,153.59,153.44,272.28888502]
[1719951940991,6.5134,153.53,153.44,272.28888502]
[1719951941188,6.5131,153.54,153.44,272.28888502]
[1719951941409,6.5134,153.53,153.44,272.28888502]
[1719951941813,26.69,153.52,153.44,272.28888502]
[1719951942107,6.5158,153.48,153.4,115.6044]
[1719951942320,26.69,153.52,153.43,100.0]
[1719951942506,6.5133,153.54,153.44,1.30286959]
[1719951942711,6.5134,153.53,153.44,1.30286959]
[1719951943207,6.5142,153.51,153.44,1.30286959]
[1719951943412,6.5139,153.52,153.45,1.30278468]
[1719951943614,6.5139,153.52,153.46,0.17]
[1719951944317,33.2032,153.54,153.46,0.17]
[1719951944492,33.2032,153.54,153.45,0.17]
[1719951945087,26.69,153.54,153.45,0.17]
[1719951945319,6.5134,153.53,153.48,0.17]
[1719951945621,6.5138,153.52,153.48,0.17]
[1719951947015,6.5142,153.51,153.48,0.17]
[1719951947197,6.5139,153.52,153.48,0.17]
[1719951947713,6.5139,153.52,153.4,15.6044]
[1719951947714,15.3369,153.5,153.4,15.6044]
[1719951947905,6.5164,153.46,153.4,15.6044]
[1719951948095,26.69,153.47,153.36,15.3226]
[1719951948297,6.5175,153.44,153.36,15.3226]
[1719951948717,26.69,153.47,153.36,15.3226]
[1719951949214,26.69,153.44,153.36,15.3226]
[1719951949602,6.5177,153.43,153.36,15.3226]
[1719951949924,33.2073,153.44,153.36,15.3226]
[1719951950623,6.5177,153.43,153.36,15.3226]
[1719951950812,26.69,153.44,153.33,15.7941]
[1719951951008,6.5185,153.41,153.33,15.7941]
[1719951951396,6.5185,153.41,153.34,1.30392075]
[1719951951897,6.5184,153.42,153.33,15.7941]
[1719951952104,26.69,153.44,153.33,15.7941]
[1719951952105,6.5188,153.41,153.33,15.7941]
[1719951952428,6.5192,153.4,153.33,15.7941]
[1719951952795,6.519,153.4,153.33,15.7941]
[1719951952996,33.2085,153.41,153.33,15.7941]
[1719951953819,26.69,153.41,153.33,15.7941]
[1719951954002,6.5196,153.39,153.33,15.7941]
[1719951954322,6.519,153.4,153.33,15.7941]
[1719951954533,26.69,153.41,153.33,15.7941]
[1719951954824,6.5189,153.4,153.33,15.7941]
[1719951955200,6.5189,153.4,153.34,0.17]
[1719951955406,33.2085,153.41,153.34,0.34]
[1719951955899,26.69,153.41,153.34,0.34]
[1719951957314,6.5189,153.4,153.34,0.34]
[1719951957517,6.5195,153.39,153.33,15.7941]
[1719951957910,6.5197,153.38,153.33,15.7941]
[1719951958110,6.5208,153.36,153.28,15.1759]
[1719951958311,6.521,153.35,153.28,15.1759]
[1719951958515,26.69,153.38,153.28,15.1759]
[1719951958516,6.5206,153.36,153.28,15.1759]
[1719951958827,33.2099,153.38,153.28,15.1759]
[1719951959120,26.69,153.38,153.28,115.1759]
[1719951959503,26.69,153.38,153.29,0.17]
[1719951960317,26.69,153.38,153.29,0.34]
[1719951960825,26.69,153.38,153.29,20.34]
[1719951961521,26.69,153.38,153.3,100.0]
[1719951961820,26.69,153.41,153.31,20.34]
[1719951961994,26.69,153.41,153.32,20.0]
[1719951962198,26.69,153.41,153.31,0.34]
[1719951962199,26.69,153.41,153.33,0.34]
[1719951962410,33.2085,153.41,153.34,0.17]
[1719951962621,33.2085,153.41,153.33,0.17]
[1719951963317,46.32,153.41,153.29,20.0]
[1719951963530,33.2098,153.38,153.29,20.0]
[1719951963827,33.2097,153.38,153.29,20.0]
[1719951964748,33.2097,153.38,153.3,0.34]
[1719951964749,33.2099,153.38,153.3,0.34]
[1719951965926,26.69,153.38,153.3,0.34]
[1719951967012,33.2098,153.38,153.3,0.34]
[1719951967228,26.69,153.38,153.3,0.34]
[1719951969432,33.2097,153.38,153.3,0.34]
[1719951971537,26.69,153.38,153.3,0.34]
[1719951971840,33.2097,153.38,153.3,0.34]
[1719951972014,26.69,153.38,153.3,0.34]
[1719951976155,33.21,153.38,153.3,0.34]
[1719951977153,26.69,153.38,153.3,0.34]
[1719951980140,26.69,153.38,153.3,0.17]
[1719951981055,33.2099,153.38,153.3,0.17]
[1719951981442,26.69,153.38,153.3,0.24]
[1719951981643,26.69,153.38,153.33,0.17]
[1719951981839,26.69,153.38,153.34,0.17]
[1719951983163,33.2088,153.41,153.34,0.17]
[1719951983464,33.2088,153.41,153.34,16.4534]
[1719951983649,33.2088,153.41,153.35,0.17]
[1719951984444,6.5189,153.4,153.35,0.17]
[1719951985553,33.2086,153.41,153.35,0.17]
[1719951987741,13.39,153.36,153.35,0.17]
[1719951993784,13.39,153.36,153.34,16.4534]
[1719951994069,13.39,153.35,153.34,16.4534]
[1719951994570,26.42447232,153.42,153.34,16.4534]
[1719951994571,6.79447232,153.42,153.34,16.6234]
[1719951994767,13.39,153.35,153.34,16.6234]
[1719952000270,13.39,153.36,153.34,16.6234]
[1719952003761,6.5189,153.4,153.34,16.6234]
[1719952003963,13.39,153.36,153.34,16.6234]
[1719952005356,13.39,153.35,153.34,16.6234]
[1719952006858,13.39,153.36,153.34,16.6234]
[1719952010285,13.39,153.35,153.31,1.30413505]
[1719952010485,13.39,153.35,153.29,46.33601369]
[1719952010486,13.39,153.35,153.29,59.72993456]
[1719952010663,13.39,153.35,153.3,1.30426846]
[1719952010874,13.39,153.35,153.29,59.72993456]
[1719952011068,13.39,153.35,153.3,13.39]
[1719952011381,13.39,153.36,153.31,20.0]
[1719952012017,13.39,153.36,153.32,0.34]
[1719952013484,6.5185,153.41,153.32,1.60667828]
[1719952013789,13.39,153.37,153.32,1.60667828]
[1719952013997,13.39,153.37,153.32,0.34]
[1719952014283,13.39,153.36,153.32,0.34]
[1719952016288,6.5186,153.41,153.32,0.34]
[1719952016459,13.39,153.36,153.32,0.34]
[1719952016875,13.39,153.37,153.32,0.34]
[1719952019384,13.39,153.37,153.32,13.73]
[1719952019596,13.39,153.37,153.33,20.0]
[1719952019784,13.39,153.37,153.34,0.34]
[1719952020893,13.39,153.37,153.35,0.34]
[1719952021070,13.39,153.37,153.33,0.34]
[1719952021866,82.02336093,153.44,153.33,0.34]
[1719952021867,101.65336093,153.44,153.33,0.34]
[1719952022073,13.39,153.34,153.33,0.17]
[1719952023801,13.39,153.35,153.33,0.17]
[1719952024095,13.39,153.35,153.34,0.17]
[1719952024269,6.5186,153.41,153.34,0.17]
[1719952024685,13.39,153.35,153.34,0.17]
[1719952032796,6.5186,153.41,153.34,0.17]
[1719952032998,13.39,153.35,153.34,0.17]
[1719952037807,13.39,153.36,153.34,0.17]
[1719952038105,6.5182,153.42,153.34,0.17]
[1719952038308,6.5182,153.42,153.34,1.47383125]
[1719952038489,13.39,153.38,153.35,0.17]
[1719952038691,6.5182,153.42,153.35,0.17]
[1719952038913,13.39,153.39,153.35,0.17]
[1719952039614,13.39,153.38,153.35,0.17]
[1719952040286,13.39,153.37,153.35,0.17]
[1719952040797,13.39,153.37,153.34,0.34]
[1719952042083,13.39,153.37,153.33,20.0]
[1719952042592,13.39,153.36,153.33,20.0]
[1719952043487,13.39,153.36,153.34,0.34]
[1719952043704,21.6702,153.44,153.35,15.2899]
[1719952044014,21.6702,153.44,153.36,0.34]
[1719952044015,13.39,153.4,153.36,0.34]
[1719952044188,81.7474,153.44,153.36,0.34]
[1719952044189,13.39,153.39,153.36,0.34]
[1719952045409,81.7474,153.44,153.36,0.34]
[1719952045410,6.4413,153.44,153.36,0.34]
[1719952045616,13.39,153.4,153.36,20.34]
[1719952045826,60.0013,153.44,153.36,20.34]
[1719952046021,21.7824,153.48,153.37,113.39]
[1719952046207,21.7824,153.48,153.38,33.73]
[1719952046208,13.39,153.43,153.38,33.73]
[1719952047694,6.3065,153.51,153.41,13.39]
[1719952047889,13.39,153.47,153.42,33.73]
[1719952049017,13.39,153.46,153.42,20.34]
[1719952049193,13.39,153.45,153.42,20.34]
[1719952049398,13.39,153.44,153.42,0.34]
[1719952049594,13.39,153.44,153.41,0.34]
[1719952050200,13.39,153.45,153.41,0.34]
[1719952050504,6.5147,153.5,153.41,0.34]
[1719952050805,6.3065,153.51,153.41,0.34]
[1719952051012,13.39,153.45,153.41,0.34]
[1719952051207,13.39,153.46,153.41,13.73]
[1719952051421,13.39,153.46,153.42,20.0]
[1719952051609,13.39,153.46,153.43,0.34]
[1719952052219,13.39,153.45,153.43,0.34]
[1719952052618,13.39,153.45,153.42,0.34]
[1719952052927,6.3065,153.51,153.42,0.34]
[1719952053100,13.39,153.48,153.42,13.73]
[1719952053297,13.39,153.48,153.43,20.0]
[1719952053500,13.39,153.48,153.44,0.34]
[1719952053917,6.5772,153.48,153.39,15.5267]
[1719952054119,13.39,153.43,153.39,15.5267]
[1719952055409,13.39,153.44,153.39,28.9167]
[1719952055619,6.5772,153.48,153.4,13.39]
[1719952055817,13.39,153.45,153.41,20.0]
[1719952056013,13.39,153.45,153.42,0.34]
[1719952059430,21.1136,153.52,153.42,100.34]
[1719952059728,21.1136,153.52,153.43,20.0]
[1719952060026,13.39,153.47,153.44,0.34]
[1719952060708,13.39,153.47,153.45,0.17]
[1719952060911,13.39,153.47,153.43,0.34]
[1719952061110,13.39,153.46,153.43,0.34]
[1719952061919,13.39,153.44,153.36,15.3636]
[1719952062118,13.39,153.4,153.36,15.3636]
[1719952062318,6.4512,153.48,153.36,15.3636]
[1719952062505,13.39,153.42,153.37,13.39]
[1719952063328,13.39,153.42,153.38,20.0]
[1719952063629,13.39,153.42,153.37,20.0]
[1719952064117,13.39,153.41,153.38,0.34]
[1719952065005,13.39,153.4,153.38,0.34]
[1719952066419,13.39,153.4,153.37,0.34]
[1719952067311,12.9667,153.48,153.38,13.39]
[1719952067625,13.39,153.42,153.39,0.34]
[1719952067825,13.39,153.42,153.4,0.34]
[1719952068010,6.4512,153.48,153.37,133.73]
[1719952068215,13.39,153.42,153.37,133.73]
[1719952068430,13.39,153.42,153.37,33.73]
[1719952069412,13.39,153.42,153.37,133.73]
[1719952069819,15.7134,153.5,153.4,100.0]
[1719952070021,15.7134,153.5,153.41,0.34]
[1719952070216,13.39,153.45,153.41,0.34]
[1719952071415,59.7283,153.52,153.41,50.3794]
[1719952071614,13.39,153.46,153.41,50.3794]
[1719952073622,59.7283,153.52,153.42,100.0]
[1719952073623,66.2421,153.52,153.42,100.0]
[1719952073824,6.5138,153.52,153.43,20.34]
[1719952074142,13.39,153.47,153.43,20.34]
[1719952074633,15.6575,153.54,153.45,100.0]
[1719952074927,13.39,153.49,153.46,0.34]
[1719952075137,13.39,153.49,153.46,0.17]
[1719952075318,13.39,153.49,153.45,0.34]
[1719952075524,13.39,153.49,153.45,20.34]
[1719952075714,13.39,153.49,153.45,0.34]
[1719952075914,13.39,153.49,153.44,20.34]
[1719952076323,12.85792662,153.56,153.45,129.9226]
[1719952076324,13.39,153.5,153.45,129.9226]
[1719952076528,19.37032662,153.56,153.46,20.34]
[1719952076732,12.85792662,153.56,153.46,20.34]
[1719952076922,13.39,153.5,153.46,20.34]
[1719952080540,19.37002662,153.56,153.46,33.73]
[1719952080719,13.39,153.51,153.46,33.73]
[1719952082735,13.39,153.51,153.46,20.34]
[1719952082949,13.39,153.49,153.46,20.34]
[1719952084117,13.39,153.49,153.45,16.5326]
[1719952084315,13.39,153.47,153.42,13.39]
[1719952084912,13.39,153.47,153.41,129.2749]
[1719952085125,13.39,153.46,153.41,129.2749]
[1719952086140,13.39,153.46,153.42,20.0]
[1719952087130,13.39,153.46,153.43,0.34]
[1719952087932,13.39,153.47,153.43,0.34]
[1719952089935,6.5137,153.53,153.43,0.34]
[1719952090135,13.39,153.47,153.43,0.34]
[1719952090338,6.5145,153.51,153.43,0.34]
[1719952090542,13.39,153.47,153.43,0.34]
[1719952091126,6.5133,153.54,153.43,113.73]
[1719952091319,13.39,153.48,153.44,20.0]
[1719952091538,13.39,153.48,153.45,0.34]
[1719952093525,6.5133,153.53,153.45,0.34]
[1719952093726,6.5131,153.54,153.45,0.34]
[1719952093936,13.39,153.48,153.45,0.34]
[1719952094341,13.39,153.49,153.45,0.34]
[1719952095333,13.39,153.48,153.45,0.34]
[1719952096228,6.5135,153.53,153.46,0.17]
[1719952096531,13.39,153.49,153.46,0.17]
[1719952096732,13.39,153.49,153.44,20.34]
[1719952096931,13.39,153.49,153.44,33.73]
[1719952098033,13.39,153.49,153.44,20.34]
[1719952098950,13.39,153.48,153.44,20.34]
[1719952103854,13.39,153.48,153.45,0.65575751]
[1719952104049,6.5133,153.54,153.46,0.34]
[1719952104239,13.39,153.49,153.47,0.17]
[1719952104759,13.39,153.49,153.44,33.73]
[1719952106150,13.39,153.48,153.44,20.34]
[1719952106462,13.39,153.45,153.41,115.8849]
[1719952107141,13.39,153.45,153.41,15.8849]
[1719952107342,13.39,153.43,153.41,15.8849]
[1719952107651,13.39,153.43,153.38,493.79]
[1719952107857,13.39,153.43,153.38,480.4]
[1719952108241,13.39,153.43,153.38,493.79]
[1719952108446,13.39,153.43,153.39,20.0]
[1719952108645,13.39,153.42,153.38,380.4]
[1719952109155,41.3806,153.51,153.38,380.4]
[1719952109156,13.39,153.4,153.38,380.4]
[1719952110357,13.39,153.4,153.39,0.34]
[1719952111045,13.39,153.4,153.37,15.7135]
[1719952111350,13.39,153.39,153.38,1.21910723]
[1719952112249,53.56,153.44,153.38,1.21910723]
[1719952112458,13.39,153.4,153.38,0.17]
[1719952112636,13.39,153.39,153.33,15.4449]
[1719952112837,13.39,153.37,153.34,20.0]
[1719952113065,13.39,153.36,153.34,20.0]
[1719952113245,53.56,153.44,153.33,15.4449]
[1719952113246,13.39,153.35,153.33,15.4449]
[1719952115547,6.5182,153.42,153.33,15.4449]
[1719952115751,13.39,153.35,153.34,0.34]
[1719952116877,6.5185,153.41,153.34,0.34]
[1719952117047,13.39,153.35,153.34,0.34]
[1719952123746,22.9556,153.4,153.34,0.34]
[1719952123952,13.39,153.37,153.34,0.34]
[1719952124264,13.39,153.37,153.32,113.39]
[1719952124265,13.39,153.37,153.35,0.17]
[1719952124464,13.39,153.37,153.33,20.34]
[1719952126056,13.39,153.36,153.33,20.34]
[1719952126277,13.39,153.36,153.33,0.34]
[1719952126472,12.9344,153.43,153.33,0.34]
[1719952126678,13.39,153.39,153.34,13.39]
[1719952126884,13.39,153.39,153.35,0.34]
[1719952129152,13.39,153.39,153.35,20.34]
[1719952130470,13.39,153.39,153.35,0.34]
[1719952130669,13.39,153.39,153.35,20.34]
[1719952132777,13.39,153.38,153.35,20.34]
[1719952132971,6.5182,153.42,153.35,0.34]
[1719952133171,13.39,153.38,153.34,0.34]
[1719952133380,6.5182,153.42,153.34,0.34]
[1719952133681,13.39,153.38,153.34,0.34]
[1719952134279,12.9344,153.43,153.34,0.34]
[1719952134585,12.9344,153.43,153.34,29.8471]
[1719952134787,13.39,153.39,153.35,20.0]
[1719952134962,13.39,153.39,153.36,0.34]
[1719952135289,13.39,153.41,153.36,14.38164966]
[1719952135581,6.5168,153.45,153.36,13.73]
[1719952135881,13.39,153.41,153.36,13.73]
[1719952137971,6.5168,153.45,153.36,13.73]
[1719952138287,6.5168,153.45,153.37,33.39]
[1719952138491,6.5168,153.45,153.38,0.34]
[1719952138492,13.39,153.42,153.38,0.34]
[1719952138691,6.5168,153.45,153.38,0.34]
[1719952138874,13.39,153.42,153.38,0.34]
[1719952140381,13.01973693,153.47,153.38,100.34]
[1719952140571,13.01973693,153.47,153.39,13.39]
[1719952140889,13.39,153.44,153.4,20.34]
[1719952142078,13.39,153.43,153.4,20.34]
[1719952142387,13.39,153.43,153.4,0.34]
[1719952147874,16.3638,153.48,153.4,16.0512]
[1719952148067,6.3853,153.51,153.41,120.0]
[1719952148283,29.07970657,153.56,153.46,113.39]
[1719952148596,13.39,153.51,153.47,20.34]
[1719952148776,6.514,153.52,153.47,0.34]
[1719952148984,6.514,153.52,153.47,0.17]
[1719952148985,13.39,153.48,153.47,0.17]
[1719952149185,13.39,153.48,153.46,0.34]
[1719952149497,13.39,153.47,153.46,0.34]
[1719952154784,6.1532,153.51,153.46,0.34]
[1719952154981,6.6358,153.55,153.46,0.34]
[1719952155304,13.39,153.49,153.46,0.34]
[1719952155477,13.39,153.49,153.45,20.34]
[1719952155685,13.39,153.48,153.45,20.34]
[1719952156102,13.39,153.48,153.45,0.34]
[1719952158000,53.56,153.52,153.45,0.34]
[1719952158209,13.39,153.49,153.45,0.34]
[1719952159201,13.1484,153.55,153.45,0.34]
[1719952159412,13.1484,153.55,153.45,13.73]
[1719952159413,13.39,153.5,153.45,13.73]
[1719952159582,13.39,153.5,153.46,35.8397]
[1719952159779,13.39,153.51,153.47,0.34]
[1719952162308,13.1484,153.55,153.47,0.34]
[1719952162309,13.39,153.49,153.47,0.34]
[1719952163009,13.39,153.5,153.47,0.34]
[1719952163210,13.39,153.49,153.47,0.34]
[1719952164995,13.39,153.48,153.46,0.34]
[1719952165698,13.39,153.48,153.47,0.17]
[1719952166005,13.39,153.48,153.45,0.34]
[1719952168218,6.5143,153.51,153.45,0.34]
[1719952168389,13.39,153.46,153.45,0.34]
[1719952168590,13.39,153.52,153.44,0.34]
[1719952168591,13.39,153.47,153.44,0.34]
[1719952168915,13.39,153.48,153.44,0.34]
[1719952170320,13.39,153.47,153.44,0.34]
[1719952171919,53.56,153.52,153.44,0.34]
[1719952171920,13.39,153.48,153.44,0.34]
[1719952173313,53.56,153.52,153.44,0.34]
[1719952173493,13.39,153.48,153.44,0.34]
[1719952178996,13.39,153.47,153.44,0.34]
[1719952181997,13.75323805,153.55,153.44,13.73]
[1719952182300,13.75323805,153.55,153.45,20.0]
[1719952182301,13.39,153.49,153.45,20.0]
[1719952182517,13.39,153.49,153.46,0.34]
[1719952183709,6.6358,153.55,153.46,13.73]
[1719952183916,13.39,153.51,153.46,13.73]
[1719952184101,7.16398122,153.58,153.48,129.8249]
[1719952184306,7.16398122,153.58,153.49,33.73]
[1719952184501,13.39,153.54,153.49,20.34]
[1719952184811,13.39,153.53,153.49,20.34]
[1719952185400,13.39,153.52,153.49,20.34]
[1719952185624,13.39,153.52,153.49,21.64278303]
[1719952186205,13.39,153.52,153.49,20.34]
[1719952189132,13.39,153.53,153.49,20.34]
[1719952189630,13.30025629,153.57,153.49,20.34]
[1719952189929,13.39,153.53,153.49,20.34]
[1719952190828,6.78845629,153.57,153.49,20.34]
[1719952191020,13.39,153.53,153.49,20.34]
[1719952192012,6.78845629,153.57,153.49,20.34]
[1719952192209,13.39,153.54,153.49,33.73]
[1719952193214,13.39,153.53,153.49,20.34]
[1719952193425,6.78845629,153.57,153.49,33.73]
[1719952193609,13.39,153.54,153.49,33.73]
[1719952194626,13.39,153.54,153.49,20.34]
[1719952195330,13.39,153.55,153.5,13.39]
[1719952195517,13.39,153.55,153.51,0.34]
[1719952195902,6.78845629,153.57,153.51,0.34]
[1719952195903,6.78845629,153.57,153.51,26.7467]
[1719952196110,13.39,153.58,153.53,13.39]
[1719952196307,13.39,153.58,153.54,20.34]
[1719952196620,13.39,153.55,153.54,0.34]
[1719952198646,39.48210343,153.59,153.54,0.34]
[1719952198935,13.39,153.55,153.54,0.34]
[1719952200727,6.7860588,153.58,153.54,0.34]
[1719952200922,6.7860588,153.58,153.49,20.0]
[1719952200923,13.39,153.55,153.49,20.0]
[1719952201135,6.5121,153.56,153.49,20.0]
[1719952201446,6.5121,153.56,153.5,0.34]
[1719952201616,13.39,153.51,153.49,20.0]
[1719952202031,13.2975588,153.58,153.49,20.0]
[1719952202032,13.39,153.5,153.49,20.0]
[1719952202535,13.2974588,153.58,153.49,20.0]
[1719952202536,13.39,153.51,153.49,20.0]
[1719952202841,13.39,153.51,153.5,0.17]
[1719952203142,13.2973588,153.58,153.5,0.34]
[1719952203633,13.39,153.52,153.5,0.34]
[1719952203842,13.39,153.51,153.5,0.34]
[1719952205131,6.5117,153.57,153.5,0.34]
[1719952205439,13.39,153.51,153.5,0.34]
[1719952205921,6.5122,153.56,153.5,0.34]
[1719952206121,13.39,153.51,153.5,0.34]
[1719952209045,6.5118,153.57,153.5,0.34]
[1719952209347,13.39,153.52,153.5,0.34]
[1719952211718,13.39,153.51,153.5,0.34]
[1719952212718,138.280634,153.54,153.53,16.6437]
[1719952212915,138.280634,153.54,153.53,36.9837]
[1719952213739,151.670634,153.54,153.53,16.9837]
[1719952214051,151.670634,153.54,153.53,36.9837]
[1719952214545,151.670634,153.54,153.53,20.34]
[1719952214848,151.670634,153.54,153.53,0.34]
[1719952215028,151.670634,153.54,153.52,0.34]
[1719952217932,138.280634,153.54,153.52,0.34]
[1719952218135,138.280634,153.54,153.52,100.34]
[1719952218327,151.670634,153.54,153.53,20.0]
[1719952218635,138.280634,153.54,153.53,20.34]
[1719952218936,151.670634,153.54,153.53,20.34]
[1719952219742,138.280634,153.54,153.53,20.34]
[1719952219950,151.670634,153.54,153.53,20.34]
[1719952221325,138.280634,153.54,153.53,0.34]
[1719952221526,151.670634,153.54,153.49,16.5344]
[1719952221730,13.39,153.5,153.49,16.5344]
[1719952222138,138.280634,153.54,153.49,16.5344]